Cogmind - Beta 16 @@@ ROGUE MODE // 2025.12.28 @ 00:48:10 Player: Bity Result: Destroyed by 45-FWU(R) with Subdweller Laser Performance ------------- Evolutions (0) 0 Regions Visited (2) 400 Robots Destroyed (20) 100 Value Destroyed (469) 469 Prototype IDs (0) 0 Alien Tech Used (0) 0 Bonus (0) 0 TOTAL SCORE: 969 Bonus ------- None Cogmind --------- Core Integrity 0/250 Matter 287/300 Energy 92/100 System Corruption 0% Temperature Cool (6) Movement Hovering (160) Ox1 Location -10/Subcaves Parts ------- > --- POWER (1) -------- (None) > --- PROPULSION (2) --- Backup Propulsion I > --- UTILITY (2) ------ Small Storage Unit Weapon Shielding > --- WEAPON (2) ------- Particle Gun Hammer > --- INVENTORY (8) ---- Light Ion Engine Subdweller Power Source Wheel Wheel Wheel Subdweller Monowheel Light Assault Rifle Light Assault Rifle Peak State ------------ > --- POWER ------------ Backup Power I > --- PROPULSION ------- Aluminum Leg Backup Propulsion I > --- UTILITY ---------- Small Storage Unit Weapon Shielding > --- WEAPON ----------- Particle Gun Hammer > --- INVENTORY -------- Light Ion Engine Subdweller Power Source Wheel Wheel Wheel Subdweller Monowheel Light Assault Rifle Light Assault Rifle [Rating: 9] Favorites ----------- Power Backup Power I Engine Backup Power I Propulsion Aluminum Leg Leg Aluminum Leg Hover Unit Backup Propulsion I Utility Small Storage Unit Device Seismic Detector Storage Small Storage Unit Protection Weapon Shielding Weapon Light Assault Rifle Energy Gun Particle Gun Ballistic Gun Light Assault Rifle Launcher Grenade Launcher Impact Weapon Hammer Build | -11 -10 -10 ------- Run | Yrd Mat Sub Slots Evolved . | . . . Power . | . . . Propulsion . | . . . Utility . | . . . Weapon . | . . . Parts Attached 7 | 1 4 2 Power . | . . . Engine . | . . . Core . | . . . Reactor . | . . . Propulsion . | . . . Treads . | . . . Leg . | . . . Wheel . | . . . Hover . | . . . Flight . | . . . Utility 2 | 1 1 . Device 1 | 1 . . Storage . | . . . Processor . | . . . Hackware . | . . . Protection 1 | . 1 . Artifact . | . . . Weapon 5 | . 3 2 Energy Gun 1 | . . 1 Energy Cannon . | . . . Ballistic Gun 2 | . 2 . Ballistic Cannon . | . . . Launcher 1 | . 1 . Special Weapon . | . . . Impact Weapon 1 | . . 1 Slashing Weapon . | . . . Piercing Weapon . | . . . Special Melee Weapon . | . . . Unidentified Prototypes . | . . . Parts Lost 6 | . 4 2 Power 2 | . 1 1 Propulsion 2 | . 1 1 Utility 1 | . 1 . Weapon 1 | . 1 . Highest Loss Streak 3 | . 3 2 To Critical Strikes . | . . . Average Backups 7 | 7 7 8 Power 1 | 1 2 2 Propulsion 4 | 4 4 4 Utility . | . . . Weapon 1 | 1 1 2 Tool/Special . | . . . Unused Backups 12 | 2 6 4 Power 2 | . 1 1 Propulsion 7 | 1 3 3 Utility . | . . . Weapon 3 | 1 2 . Tool/Special . | . . . Average Slot Usage (%) 92 | . 91 99 Engine 10 | . 9 14 Leg 19 | . 20 13 Hover 6 | . 5 14 Device 6 | . 7 . Storage 14 | . 14 14 Protection 6 | . 5 14 Ballistic Gun 21 | . 21 24 Launcher 5 | . 6 . Peak Build Rating 9 | 7 8 9 Average Rating 6 | 6 6 8 On Entrance 7 | 6 7 8 Avg Prop Armor Cover (%) 11 | . 11 11 Naked Turns . | . . . Heaviest Build 14 | 12 14 12 Greatest Support 20 | 20 20 6 Greatest Overweight (x) 1 | . 1 1 Average Overweight (x) . | . . 1 Largest Inventory Capacity 8 | 8 8 8 Average Capacity 8 | 8 8 8 Most Carried 8 | 8 8 8 Average Carried 7 | 7 7 8 Final Capacity 8 | 8 8 8 Final Carried 8 | 8 8 8 Class Distribution -------------------- 100% | Mutant Dominant Class ---------------- Mutant | -10/Materials Mutant | -10/Subcaves Resources | -11 -10 -10 ----------- Run | Yrd Mat Sub Matter Collected 633 | 261 315 57 Remotely . | . . . Salvage Created 490 | 112 337 41 Parts 37 | 14 20 3 Haulers Intercepted 1 | . 1 . Recyclers Shooed 2 | 1 1 . Parts Field Recycled . | . . . Retrieved Matter . | . . . Parts Self-Destructed 1 | . . 1 Prevented . | . . . Parts Restored . | . . . Kills | -11 -10 -10 ------- Run | Yrd Mat Sub Combat Hostiles Destroyed 13 | . 12 1 Guns 6 | . 5 1 AOE 7 | . 7 . Classes Destroyed 8 | 2 5 1 Builder 1 | . 1 . Tunneler 3 | 3 . . Hauler 1 | . 1 . Recycler 1 | 1 . . Watcher 1 | . 1 . Swarmer 3 | . 3 . Grunt 9 | . 9 . Subdweller 1 | . . 1 Best Kill Streak 5 | 2 5 1 Combat Bots Only 4 | . 4 1 Max Kills in Single Turn 2 | 1 2 1 Gunslinging . | . . . Exploded 2 | . 2 . Melee . | . . . Uniques/NPCs Destroyed . | . . . Combat | -11 -10 -10 -------- Run | Yrd Mat Sub Hostile Shots Fired 78 | . 66 12 Missed 21 | . 18 3 Hits 57 | . 48 9 Projectile 57 | . 48 9 Damage Taken 853 | . 666 187 Core 254 | . 166 88 Absorbed by Shields . | . . . Redirected to Shielding 17 | . 5 12 Regen/Repaired (Parts) 78 | . 78 . Core Remaining (%) 100 | 100 . . Volleys Fired 78 | 19 54 5 Largest 2 | 2 2 1 Hottest 65 | 40 50 65 Shots Fired 127 | 38 84 5 Gun 111 | 38 68 5 Cannon . | . . . Launcher 16 | . 16 . Special . | . . . Kinetic 106 | 38 68 . Thermal 5 | . . 5 Explosive 16 | . 16 . Electromagnetic . | . . . Robot Hit Streak 6 | 4 6 6 Robot Miss Streak 3 | 2 3 . Penetration Max . | . . . Secondary Targets . | . . . Shots Hit Robots 77 | 22 49 6 Core Hits 40 | 6 31 3 Critical Kills . | . . . Critical Parts Destroyed . | . . . Critical Strikes 1 | . . 1 Burn 1 | . . 1 Melee Attacks 1 | . . 1 Impact 1 | . . 1 Slashing . | . . . Piercing . | . . . Sneak Attacks . | . . . Combat Hostiles . | . . . Follow-up Attacks . | . . . Damage Inflicted 1431 | 208 1125 98 Guns 720 | 208 433 79 Cannons . | . . . Explosions 692 | . 692 . Melee 19 | . . 19 Ramming . | . . . Kinetic 641 | 208 433 . Thermal 79 | . . 79 Explosive 692 | . 692 . Electromagnetic . | . . . Impact 19 | . . 19 Slashing . | . . . Piercing . | . . . Highest Corruption . | . . . Average Corruption . | . . . Corruption Purged . | . . . Corruption Blocked . | . . . Overload Shots . | . . . Overflow Damage 2 | . 2 . Projectiles . | . . . Explosions 2 | . 2 . Melee . | . . . Knockbacks 1 | . . 1 Impact 1 | . . 1 Kinetic . | . . . Secondary . | . . . Self-Inflicted Damage 104 | . 104 . Shots 5 | . 5 . Rammed . | . . . Targets Rammed . | . . . Kicked . | . . . Crushed . | . . . Highest Temperature 10 | . 10 3 Average Temperature 3 | . 3 3 Received Heat Transfer 333 | . 279 54 Siege Activations . | . . . Martial Activations . | . . . Shielding Activations . | . . . Robots Disrupted . | . . . Combat Hostiles . | . . . Robots Corrupted . | . . . Combat Hostiles . | . . . Parts Fried . | . . . Impact Corruptions . | . . . Robots Melted . | . . . Combat Hostiles . | . . . Parts Melted 1 | . . 1 Heat Transferred 259 | . . 259 Parts Sabotaged . | . . . Parts Stolen . | . . . Parts Stripped . | . . . Power Chain Reactions . | . . . Alert | -11 -10 -10 ------- Run | Yrd Mat Sub Maximum Alert Level 1 | . 1 . Low Security (%) 71 | 100 67 . Level 1 28 | . 32 . Level 2 . | . . . Level 3 . | . . . Level 4 . | . . . Level 5 . | . . . High Security . | . . . Max Security . | . . . Peak Influence 254 | 10 254 . Initial . | . . . Average 130 | 1 151 . Influence Increases 491 | 20 471 . Destroy 0b10 Robot/C 240 | . 240 . Destroy 0b10 Robot/NC 35 | 20 15 . Destroy Leader 44 | . 44 . Successful Hack 21 | . 21 . Disable Machine 45 | . 45 . Destroy Structure 76 | . 76 . Lose Combat Pursuer 30 | . 30 . Influence Decreases 491 | 20 383 88 Entered New Map 43 | . . 43 Time Decay 408 | 20 343 45 Lost Part 40 | . 40 . Squads Dispatched 3 | . 3 . Investigation 2 | . 2 . Extermination . | . . . Reinforcement 1 | . 1 . Assault . | . . . Garrison . | . . . Intercept . | . . . Searches Triggered . | . . . Construction Impeded . | . . . Haulers Reinforced . | . . . Active Scanning Responses . | . . . Cargo Convoy Interrupts . | . . . Stealth | -11 -10 -10 --------- Run | Yrd Mat Sub Distress Signals 3 | . 3 . Communications Jammed . | . . . Distress Signals . | . . . Times Spotted 19 | . 17 2 Peak Tracking Total 4 | . 4 2 Tactical Retreats 1 | . 1 . Traps | -11 -10 -10 ------- Run | Yrd Mat Sub Traps Triggered 2 | . 2 . Indirectly . | . . . Trap Hack Attempts . | . . . Triggered . | . . . Disarmed . | . . . Reprogrammed . | . . . Reused . | . . . Traps Extracted . | . . . Installed . | . . . Triggered . | . . . Machines | -11 -10 -10 ---------- Run | Yrd Mat Sub Machines Disabled 3 | . 3 . Max in Single Turn 1 | . 1 . Machines Repaired . | . . . Machines Dismantled . | . . . Machines Sabotaged . | . . . Overloaded Fab Kills . | . . . Hacking | -11 -10 -10 --------- Run | Yrd Mat Sub Machines Accessed 8 | . 8 . Terminals 5 | . 5 . Fabricators . | . . . Repair Stations 1 | . 1 . Recycling Units 2 | . 2 . Scanalyzers . | . . . Garrison Access . | . . . Total Hacks 23 | . 23 . Successful 17 | . 17 . Failed 6 | . 6 . Catastrophic 1 | . 1 . Database Lockouts . | . . . Manual 12 | . 12 . Terminals 17 | . 17 . Fabricators . | . . . Repair Stations 4 | . 4 . Recycling Units 2 | . 2 . Scanalyzers . | . . . Garrison Access . | . . . Terminal Hacks 5 | . 5 . Robot Analysis 1 | . 1 . Emergency Access Points 1 | . 1 . Terminal Index 1 | . 1 . Maintenance Status 1 | . 1 . Zone Layout 1 | . 1 . Fabricator Hacks . | . . . Repair Station Hacks 3 | . 3 . Scan Component 1 | . 1 . Repair 1 | . 1 . Refit 1 | . 1 . Recycling Unit Hacks 2 | . 2 . Report Inventory 2 | . 2 . Scanalyzer . | . . . Garrison Access Hacks . | . . . Unauthorized Hacks 7 | . 7 . Terminals 7 | . 7 . Track 1 | . 1 . Botnet 4 | . 4 . Operators 2 | . 2 . Fabricators . | . . . Repair Stations . | . . . Recycling Units . | . . . Scanalyzers . | . . . Garrison Access . | . . . Data Cores Recovered . | . . . Used . | . . . Hacking Detections 2 | . 2 . Full Trace Events . | . . . Feedback Events . | . . . Feedback Blocked . | . . . Robot Schematics Acquired . | . . . Robots Built . | . . . Authchips . | . . . Time . | . . . Total Robot Build Rating . | . . . Part Schematics Acquired . | . . . Parts Built . | . . . Authchips . | . . . Time . | . . . Total Part Build Rating . | . . . Part Studies Acquired . | . . . Parts Repaired 1 | . 1 . Time 26 | . 26 . Parts Recycled . | . . . Recycled Matter . | . . . Retrieved Matter . | . . . Retrieved Components . | . . . Parts Scanalyzed . | . . . Part Schematics Acquired . | . . . Parts Damaged . | . . . Bothacking | -11 -10 -10 ------------ Run | Yrd Mat Sub Used RIF Installer . | . . . Robots Hacked . | . . . Non-combat . | . . . Combat . | . . . Robot Hacks Applied . | . . . Relay Couplers Released . | . . . Fabnet Peak Effective % . | . . . Robots Rewired . | . . . Allies Hacked . | . . . Hacks Repelled . | . . . Allies | -11 -10 -10 -------- Run | Yrd Mat Sub Total Allies . | . . . Largest Group . | . . . Highest-Rated Group . | . . . Highest-Rated Ally . | . . . Total Orders . | . . . Ally Attacks . | . . . Total Damage . | . . . Kills . | . . . Allies Corrupted . | . . . Allies Melted . | . . . Intel | -11 -10 -10 ------- Run | Yrd Mat Sub Active Infowar (turns) 511 | 48 463 . Seismic 511 | 48 463 . Robot Analysis Total 1 | . 1 . Derelict Logs Recovered . | . . . Drone Launches . | . . . Drone Recoveries . | . . . Exploration | -11 -10 -10 ------------- Run | Yrd Mat Sub Turns Passed 1243 | 157 944 142 Spaces Moved 657 | 73 537 47 Core . | . . . Treads . | . . . Legs 424 | 73 351 . Wheels . | . . . Hover 233 | . 186 47 Flight . | . . . Fastest Speed 120 | 120 120 170 Average Speed 137 | 120 137 170 Slowest Speed 170 | 120 170 170 Overloaded Moves . | . . . Propulsion Burnouts . | . . . Robots Hopped . | . . . Potential Cave-ins . | . . . Cave-ins Triggered . | . . . Exploration Rate (%) 31 | 4 85 4 Regions Visited 2 Branch Regions 1 Pre-discovered Areas . | . . . Known Exits Taken . | . . . Unknown Exits Taken 2 | 1 1 . Scrap Searched . | . . . Spaces Dug 6 | . 6 . Terrain Destroyed 96 | . 96 . Melee . | . . . Projectile . | . . . AOE 96 | . 96 . Terrain Rammed . | . . . Walls Destroyed . | . . . Machines Disabled . | . . . Actions | -11 -10 -10 --------- Run | Yrd Mat Sub Total 884 | 111 671 102 Wait 115 | 7 61 47 Move 655 | 72 536 47 Hop . | . . . Pick Up 13 | 7 6 . Fast Attach 4 | 1 3 . Attach 1 | . 1 . Detach . | . . . Swap 5 | . 3 2 Drop 12 | 5 7 . Fire 78 | 19 54 5 Melee 1 | . . 1 Ram . | . . . Kick . | . . . Crush . | . . . Escape Stasis . | . . . Rewire . | . . . Trap . | . . . Miscellaneous . | . . . Route ------- -11/Scrapyard -10/Materials (discovered 4 exits: [*Mat x2] / [*Min] / [*Sub]) -10/Subcaves History --------- Turn | Location | Event 1 | -11/Scrapyard | Discovered new exit (range 3) 158 | -11/Scrapyard | Entered Materials 317 | -10/Materials | Build established: Mutant 456 | -10/Materials | Discovered new exit (range 5) 628 | -10/Materials | Core integrity fell below 50% 656 | -10/Materials | Lost 3 parts (1n1u1w) 658 | -10/Materials | Derelicts attacked the area 681 | -10/Materials | Discovered new exit (range 14) 784 | -10/Materials | Repaired Lgt. Assault Rifle 937 | -10/Materials | Discovered new exit (range 9) 1088 | -10/Materials | Discovered new exit (range 7) 1102 | -10/Materials | Entered Subcaves 1103 | -10/Subcaves | Approached by a straggling Scientist 1235 | -10/Subcaves | Core integrity fell below 20% 1244 | -10/Subcaves | Destroyed by 45-FWU(R) with Subdweller Laser Last Messages --------------- back to the UFD." 01122_ Acquired 7 matter. 01127_ Acquired 6 matter. SQ-RXC(c): "I think it's somewhere south of here" 01161_ Acquired 5 matter. 01164_ Acquired 9 matter. 01170_ Acquired 6 matter. 01180_ Acquired 5 matter. 01183_ Acquired 10 matter. SQ-RXC(c): "I think it's somewhere southwest of here" 01232_ Aluminum Leg destroyed. 01232_ 45-FWU(R) knocked back. 01237_ Sub. Optics melted. 01237_ S1-M26(R) destroyed. 01239_ 45-FWU(R) suffers critical hit (Burn). 01240_ Backup Power I destroyed. 01243_ Subatomizers dissect the Sub. Power Source. Map ----- +----------------------------------------------------+ | ?????????????????????????????????????????????????? | | ?????????????????????????????????????????????????? | | ?????????????????????????????????????????????????? | | ?????????????????????????????????????????????????? | | ?????????????????????????????????????????????????? | | ?????????????????????????????????????????????????? | | ?????????????????????????????????????????????????? | | ?????????????????????????????????????????????????? | | ?????????????????????????????????????????????????? | | ?????????????????????????????????????????????????? | | ###########??????????????????????????????????????? | | # # ## ######?####????????????????????????????? | | # ### ##???????????????????????????? | | ####????????????????????????? | | ## # ## #????????????????????????? | | ###### #### #????????????????????????? | | ?????#####??# #????????????????????????? | | ????????????# ###??????????????????????? | | ????????????## ###????????????????????? | | ?????????????### ### ##???????????????????? | | ???????????????###?## #???????????????????? | | ???????????????????## #???????????????????? | | ???????????????????# ## #??????????????????? | | ???????????????????## ##?? ????????????????? | | ???????????????????## ##??? #??????????????? | | ???????????????????# @#????? #??????????????? | | ???????????????????### [ ?????????????????? | | ?????????????????????## %R #???????????????? | | ??????????????????????## * ##???????????????? | | ???????????????????????## #????????????????? | | ????????????????????????## ???????????????? | | ?????????????????????????? ?????????????? | | ??????????????????????????# ????????????? | | ???????????????????????????## ???????????? | | ?????????????????????????????# ???????????? | | ??????????????????????????????# ????????????? | | ???????????????????????????????# ????????????? | | ???????????????????????????????? ??????????????? | | ?????????????????????????????????????????????????? | | ?????????????????????????????????????????????????? | | ?????????????????????????????????????????????????? | | ?????????????????????????????????????????????????? | | ?????????????????????????????????????????????????? | | ?????????????????????????????????????????????????? | | ?????????????????????????????????????????????????? | | ?????????????????????????????????????????????????? | | ?????????????????????????????????????????????????? | | ?????????????????????????????????????????????????? | | ?????????????????????????????????????????????????? | | ?????????????????????????????????????????????????? | +----------------------------------------------------+ Best States ------------- Heat Dissipation 25 Energy Generation 10 Energy Capacity 125 Matter Stores 300 Matter Capacity 300 Sight Range 16 Terrain Scan Density 10 Weapon Shielding 33 Evasion (%) 55 Item Schematics ----------------- None Robot Schematics ------------------ None Fabricated ------------ Nothing Repaired ---------- Lgt. Assault Rifle | 2% | -10/Materials Studied --------- None Alien Tech Used ----------------- None Achievements -------------- None Challenges ------------ None Game ------ Seed MetafieldReactionDrivehammer Manual? 0 Play Time 00:10:15 Cumulative 40.2 hours Start 2025.12.28 @ 00:38:03 End 2025.12.28 @ 00:48:10 Sessions 1 Manual Loads 0 Difficulty Rogue Special Mode None Game No. 55 Rogue 55 Adventurer 0 Explorer 0 Win Type - Total 1 Types 1/0/0/0/0/0/0/0/0/0 Lore% 33 Gallery% 41 Achievement% 33 Wizard Run 0 Options --------- Layout 2 ASCII 0 Keyboard 1 Movement Numpad Keybinds 0 Fullscreen 1 Font 24/Smallcaps Map View 50x44 Zoom Use 0% Tactical HUD 1 Map Filters NONE Filters NONE Steam 1 RUN: 830a9c9e-2217-4f7e-864f-c1d9cfd61190